Cogmind - Beta 12 @@@ ROGUE MODE // 2023.05.26 @ 11:26:16 Player: Mr Goldstein Result: Destroyed by B-75 Beast with Heavy Machine Gun Performance ------------- Evolutions (4) 2000 Regions Visited (10) 2000 Robots Destroyed (2) 10 Value Destroyed (28) 28 Prototype IDs (216) 4320 Alien Tech Used (0) 0 Bonus (5125) 5125 TOTAL SCORE: 13483 Bonus ------- Pacifist 1325 Entered DSFs 500 Met Data Miner 300 Used Data Conduit 3000 Cogmind --------- Core Integrity 0/850 Matter 152/300 Energy 99/100 System Corruption 0% Temperature Cool (0) Movement Core (50) Location -5/Proximity Caves Parts ------- > --- POWER (2) -------- (None) > --- PROPULSION (5) --- (None) > --- UTILITY (4) ------ Advanced Targeting Computer Launcher Guidance Computer > --- WEAPON (4) ------- (None) > --- INVENTORY (5) ---- Nuclear Core Hardened Light Armor Plating Hardened Medium Armor Plating Deep Network Scanner Ghost Barrier Peak State ------------ > --- POWER ------------ (None) > --- PROPULSION ------- Surge Thruster Surge Thruster > --- UTILITY ---------- Advanced Targeting Computer Launcher Guidance Computer Hardened Light Armor Plating Hacking Suite > --- WEAPON ----------- Chainsword > --- INVENTORY -------- Nuclear Core Hardened Light Armor Plating Hardened Medium Armor Plating Improved Grenade Launcher [Rating: 23] Favorites ----------- Power Nuclear Core Power Core Nuclear Core Propulsion Light Treads Treads Light Treads Flight Unit Surge Thruster Utility Advanced Targeting Computer Processor Advanced Targeting Computer Hackware Hacking Suite Protection Hardened Light Armor Plating Weapon Chainsword Launcher Improved Grenade Launcher Slashing Weapon Chainsword Build | -11 -10 -10 -9 -8 -7 -7 -6 -6 -6 -5 ------- Run | Jun Mat Min Mat Mat Fac DSF Fac Low Dat Pro Slots Evolved 8 | . . . 2 2 2 . 2 . . . Power 1 | . . . . . 1 . . . . . Propulsion 3 | . . . 1 1 1 . . . . . Utility 2 | . . . 1 1 . . . . . . Weapon 2 | . . . . . . . 2 . . . Parts Attached 22 | . 2 . 1 5 5 . 6 2 1 . Power 2 | . . . . . 1 . 1 . . . Engine . | . . . . . . . . . . . Core 2 | . . . . . 1 . 1 . . . Reactor . | . . . . . . . . . . . Propulsion 10 | . 2 . 1 2 3 . 2 . . . Treads 3 | . 2 . 1 . . . . . . . Leg . | . . . . . . . . . . . Wheel . | . . . . . . . . . . . Hover . | . . . . . . . . . . . Flight 7 | . . . . 2 3 . 2 . . . Utility 6 | . . . . 2 1 . 2 1 . . Device . | . . . . . . . . . . . Storage . | . . . . . . . . . . . Processor 3 | . . . . 2 . . 1 . . . Hackware 1 | . . . . . 1 . . . . . Protection 2 | . . . . . . . 1 1 . . Artifact . | . . . . . . . . . . . Weapon 4 | . . . . 1 . . 1 1 1 . Energy Gun . | . . . . . . . . . . . Energy Cannon . | . . . . . . . . . . . Ballistic Gun . | . . . . . . . . . . . Ballistic Cannon . | . . . . . . . . . . . Launcher 2 | . . . . 1 . . . 1 . . Special Weapon . | . . . . . . . . . . . Impact Weapon . | . . . . . . . . . . . Slashing Weapon 2 | . . . . . . . 1 . 1 . Piercing Weapon . | . . . . . . . . . . . Special Melee Weapon . | . . . . . . . . . . . Unidentified Prototypes . | . . . . . . . . . . . Parts Lost 13 | . . . 3 2 . 3 1 3 . 1 Power . | . . . . . . . . . . . Propulsion 10 | . . . 3 2 . 3 . 2 . . Utility 1 | . . . . . . . 1 . . . Weapon 2 | . . . . . . . . 1 . 1 Highest Loss Streak 4 | . . . 3 2 . 3 1 4 . 1 To Critical Strikes . | . . . . . . . . . . . Average Slot Usage (%) 23 | . 14 28 26 10 30 43 37 16 16 15 Treads 4 | . 14 28 26 . . . . . . . Flight 5 | . . . . 3 7 16 13 1 . . Processor 8 | . . . . 6 15 13 10 13 13 13 Hackware 2 | . . . . . 4 7 6 . . . Protection 1 | . . . . . . . 5 1 . . Naked Turns 67 | . 21 . 13 33 . . . . . . Heaviest Build 7 | . . . . 6 7 7 5 5 3 3 Greatest Support 20 | 3 20 3 3 8 12 12 6 6 3 3 Greatest Overweight (x) . | . . . . . . . . . . . Average Overweight (x) . | . . . . . . . . . . . Largest Inventory Capacity 5 | 5 5 5 5 5 5 5 5 5 5 5 Average Capacity 5 | 5 5 5 5 5 5 5 5 5 5 5 Most Carried 5 | . 5 5 5 5 5 5 5 5 5 5 Average Carried 3 | . 1 5 4 4 3 2 4 4 4 5 Final Capacity 5 | 5 5 5 5 5 5 5 5 5 5 5 Final Carried 5 | . 5 5 5 5 1 5 5 4 5 5 Class Distribution -------------------- 87% | Mutant 12% | Sprinter Dominant Class ---------------- Mutant | -10/Materials Mutant | -10/Mines Mutant | -9/Materials Mutant | -8/Materials Mutant | -7/Factory Mutant | -7/DSF Sprinter | -6/Factory Mutant | -6/Lower Caves Mutant | -6/Data Miner Mutant | -5/Proximity Caves Resources | -11 -10 -10 -9 -8 -7 -7 -6 -6 -6 -5 ----------- Run | Jun Mat Min Mat Mat Fac DSF Fac Low Dat Pro Matter Collected 251 | 185 . 35 . . . 5 . . 26 . Remotely . | . . . . . . . . . . . Salvage Created 26 | . . . . . . . . . 26 . Parts 3 | . . . . . . . . . 3 . Haulers Intercepted . | . . . . . . . . . . . Recyclers Shooed . | . . . . . . . . . . . Parts Field Recycled . | . . . . . . . . . . . Retrieved Matter . | . . . . . . . . . . . Parts Self-Destructed . | . . . . . . . . . . . Prevented . | . . . . . . . . . . . Kills | -11 -10 -10 -9 -8 -7 -7 -6 -6 -6 -5 ------- Run | Jun Mat Min Mat Mat Fac DSF Fac Low Dat Pro Combat Hostiles Destroyed 1 | . . . . . . . . 1 . . AOE 1 | . . . . . . . . 1 . . Classes Destroyed 1 | . . . . . . . . 1 . . Swarmer 1 | . . . . . . . . 1 . . Best Kill Streak 1 | . . . . . . . . 1 1 . Combat Bots Only 1 | . . . . . . . . 1 . . Max Kills in Single Turn 1 | . . . . . . . . 1 1 . Gunslinging . | . . . . . . . . . . . Exploded 1 | . . . . . . . . 1 . . Melee . | . . . . . . . . . . . Uniques/NPCs Destroyed 1 | . . . . . . . . . 1 . Data Miner (-6/Data Miner) Combat | -11 -10 -10 -9 -8 -7 -7 -6 -6 -6 -5 -------- Run | Jun Mat Min Mat Mat Fac DSF Fac Low Dat Pro Damage Taken 2663 | . . . 719 214 . 496 105 473 450 206 Core 1692 | . . . 286 140 . 393 68 215 405 185 Absorbed by Shields . | . . . . . . . . . . . Core Remaining (%) 69 | 100 . 100 28 74 . 43 . . . . Volleys Fired 3 | . . . . . . . . 3 . . Largest 1 | . . . . . . . . 1 . . Hottest 36 | . . . . . . . . 36 . . Shots Fired 3 | . . . . . . . . 3 . . Gun . | . . . . . . . . . . . Cannon . | . . . . . . . . . . . Launcher 3 | . . . . . . . . 3 . . Special . | . . . . . . . . . . . Kinetic . | . . . . . . . . . . . Thermal . | . . . . . . . . . . . Explosive 3 | . . . . . . . . 3 . . Electromagnetic . | . . . . . . . . . . . Robot Hit Streak 2 | . . . . . . . . 2 . . Robot Miss Streak . | . . . . . . . . . . . Penetration Max . | . . . . . . . . . . . Secondary Targets . | . . . . . . . . . . . Shots Hit Robots 3 | . . . . . . . . 2 1 . Core Hits 5 | . . . 2 . . . . 2 1 . Critical Kills . | . . . . . . . . . . . Critical Parts Destroyed . | . . . . . . . . . . . Critical Strikes . | . . . . . . . . . . . Melee Attacks 2 | . . . . . . . 1 . 1 . Impact . | . . . . . . . . . . . Slashing 2 | . . . . . . . 1 . 1 . Piercing . | . . . . . . . . . . . Sneak Attacks 1 | . . . . . . . . . 1 . Combat Hostiles . | . . . . . . . . . . . Follow-up Attacks . | . . . . . . . . . . . Damage Inflicted 303 | . . . 23 . . . . 192 88 . Guns . | . . . . . . . . . . . Cannons . | . . . . . . . . . . . Explosions 192 | . . . . . . . . 192 . . Melee 88 | . . . . . . . . . 88 . Ramming 23 | . . . 23 . . . . . . . Kinetic . | . . . . . . . . . . . Thermal . | . . . . . . . . . . . Explosive 192 | . . . . . . . . 192 . . Electromagnetic . | . . . . . . . . . . . Impact . | . . . . . . . . . . . Slashing 88 | . . . . . . . . . 88 . Piercing . | . . . . . . . . . . . Highest Corruption . | . . . . . . . . . . . Average Corruption . | . . . . . . . . . . . Corruption Purged . | . . . . . . . . . . . Corruption Blocked . | . . . . . . . . . . . Overload Shots . | . . . . . . . . . . . Overflow Damage . | . . . . . . . . . . . Projectiles . | . . . . . . . . . . . Explosions . | . . . . . . . . . . . Melee . | . . . . . . . . . . . Knockbacks . | . . . . . . . . . . . Impact . | . . . . . . . . . . . Kinetic . | . . . . . . . . . . . Secondary . | . . . . . . . . . . . Self-Inflicted Damage 57 | . . . 10 . . . . 47 . . Shots 2 | . . . . . . . . 2 . . Rammed 7 | . . . 7 . . . . . . . Targets Rammed 7 | . . . 7 . . . . . . . Kicked . | . . . . . . . . . . . Crushed . | . . . . . . . . . . . Highest Temperature 7 | . . . . . . . . 7 . . Average Temperature 5 | . . . . . . . . 5 . . Received Heat Transfer 624 | . . . 291 108 . 54 27 132 . 12 Siege Activations . | . . . . . . . . . . . Robots Corrupted . | . . . . . . . . . . . Combat Hostiles . | . . . . . . . . . . . Parts Fried . | . . . . . . . . . . . Impact Corruptions . | . . . . . . . . . . . Robots Melted . | . . . . . . . . . . . Combat Hostiles . | . . . . . . . . . . . Parts Melted . | . . . . . . . . . . . Heat Transferred . | . . . . . . . . . . . Parts Sabotaged . | . . . . . . . . . . . Parts Stolen . | . . . . . . . . . . . Parts Stripped . | . . . . . . . . . . . Power Chain Reactions . | . . . . . . . . . . . Missiles Intercepted . | . . . . . . . . . . . Alert | -11 -10 -10 -9 -8 -7 -7 -6 -6 -6 -5 ------- Run | Jun Mat Min Mat Mat Fac DSF Fac Low Dat Pro Peak Influence 114 | . . . 105 114 51 50 112 . . . Initial 51 | . . . . 44 51 35 10 . . . Average 49 | . . . 48 84 51 35 55 . . . Maximum Alert Level . | . . . . . . . . . . . Low Security (%) 100 | 100 100 100 100 100 100 100 100 . . . Level 1 . | . . . . . . . . . . . Level 2 . | . . . . . . . . . . . Level 3 . | . . . . . . . . . . . Level 4 . | . . . . . . . . . . . Level 5 . | . . . . . . . . . . . High Security . | . . . . . . . . . . . Max Security . | . . . . . . . . . . . Squads Dispatched 6 | . . . 2 1 . 1 2 . . . Investigation 1 | . . . . . . . 1 . . . Extermination . | . . . . . . . . . . . Reinforcement 5 | . . . 2 1 . 1 1 . . . Assault . | . . . . . . . . . . . Garrison . | . . . . . . . . . . . Intercept . | . . . . . . . . . . . Searches Triggered . | . . . . . . . . . . . Construction Impeded . | . . . . . . . . . . . Haulers Reinforced . | . . . . . . . . . . . Active Scanning Responses . | . . . . . . . . . . . Cargo Convoy Interrupts . | . . . . . . . . . . . Stealth | -11 -10 -10 -9 -8 -7 -7 -6 -6 -6 -5 --------- Run | Jun Mat Min Mat Mat Fac DSF Fac Low Dat Pro Distress Signals 3 | . . . 3 . . . . . . . Communications Jammed . | . . . . . . . . . . . Distress Signals . | . . . . . . . . . . . Times Spotted 69 | . . . 27 7 . 5 11 10 4 5 Peak Tracking Total 21 | . . . 21 6 . 5 9 11 4 5 Tactical Retreats 6 | . . . 2 . . 1 1 2 . . Traps | -11 -10 -10 -9 -8 -7 -7 -6 -6 -6 -5 ------- Run | Jun Mat Min Mat Mat Fac DSF Fac Low Dat Pro Traps Triggered 1 | . . . . . . 1 . . . . Indirectly . | . . . . . . . . . . . Trap Hack Attempts . | . . . . . . . . . . . Triggered . | . . . . . . . . . . . Disarmed . | . . . . . . . . . . . Reprogrammed . | . . . . . . . . . . . Reused . | . . . . . . . . . . . Traps Extracted . | . . . . . . . . . . . Installed . | . . . . . . . . . . . Triggered . | . . . . . . . . . . . Machines | -11 -10 -10 -9 -8 -7 -7 -6 -6 -6 -5 ---------- Run | Jun Mat Min Mat Mat Fac DSF Fac Low Dat Pro Machines Disabled . | . . . . . . . . . . . Max in Single Turn . | . . . . . . . . . . . Machines Repaired . | . . . . . . . . . . . Machines Sabotaged . | . . . . . . . . . . . Overloaded Fab Kills . | . . . . . . . . . . . Hacking | -11 -10 -10 -9 -8 -7 -7 -6 -6 -6 -5 --------- Run | Jun Mat Min Mat Mat Fac DSF Fac Low Dat Pro Machines Accessed 6 | . . . . . 2 . 1 . 3 . Terminals 2 | . . . . . 1 . 1 . . . Fabricators . | . . . . . . . . . . . Repair Stations . | . . . . . . . . . . . Recycling Units . | . . . . . . . . . . . Scanalyzers . | . . . . . . . . . . . Garrison Access 1 | . . . . . 1 . . . . . Total Hacks 32 | . . . . . 5 . 5 . 22 . Successful 25 | . . . . . 1 . 2 . 22 . Failed 7 | . . . . . 4 . 3 . . . Catastrophic 1 | . . . . . 1 . . . . . Database Lockouts . | . . . . . . . . . . . Manual 4 | . . . . . . . 4 . . . Terminals 7 | . . . . . 2 . 5 . . . Fabricators . | . . . . . . . . . . . Repair Stations . | . . . . . . . . . . . Recycling Units . | . . . . . . . . . . . Scanalyzers . | . . . . . . . . . . . Garrison Access 3 | . . . . . 3 . . . . . Terminal Hacks 24 | . . . . . 1 . 1 . 22 . Record 2 | . . . . . . . . . 2 . Part Schematic 11 | . . . . . . . . . 11 . Robot Schematic 6 | . . . . . . . . . 6 . Prototype ID Bank 3 | . . . . . . . . . 3 . Open DSF 1 | . . . . . 1 . . . . . Hauler Manifests 1 | . . . . . . . 1 . . . Fabricator Hacks . | . . . . . . . . . . . Repair Station Hacks . | . . . . . . . . . . . Recycling Unit Hacks . | . . . . . . . . . . . Scanalyzer . | . . . . . . . . . . . Garrison Access Hacks . | . . . . . . . . . . . Unauthorized Hacks 1 | . . . . . . . 1 . . . Terminals 1 | . . . . . . . 1 . . . Assimilate 1 | . . . . . . . 1 . . . Fabricators . | . . . . . . . . . . . Repair Stations . | . . . . . . . . . . . Recycling Units . | . . . . . . . . . . . Scanalyzers . | . . . . . . . . . . . Garrison Access . | . . . . . . . . . . . Data Cores Recovered . | . . . . . . . . . . . Used . | . . . . . . . . . . . Hacking Detections 2 | . . . . . 1 . 1 . . . Full Trace Events 1 | . . . . . . . 1 . . . Feedback Events . | . . . . . . . . . . . Feedback Blocked . | . . . . . . . . . . . Robot Schematics Acquired 6 | . . . . . . . . . 6 . Robots Built . | . . . . . . . . . . . Authchips . | . . . . . . . . . . . Time . | . . . . . . . . . . . Total Robot Build Rating . | . . . . . . . . . . . Part Schematics Acquired 11 | . . . . . . . . . 11 . Parts Built . | . . . . . . . . . . . Authchips . | . . . . . . . . . . . Time . | . . . . . . . . . . . Total Part Build Rating . | . . . . . . . . . . . Parts Repaired . | . . . . . . . . . . . Time . | . . . . . . . . . . . Parts Recycled . | . . . . . . . . . . . Recycled Matter . | . . . . . . . . . . . Retrieved Matter . | . . . . . . . . . . . Retrieved Components . | . . . . . . . . . . . Parts Scanalyzed . | . . . . . . . . . . . Part Schematics Acquired . | . . . . . . . . . . . Parts Damaged . | . . . . . . . . . . . Bothacking | -11 -10 -10 -9 -8 -7 -7 -6 -6 -6 -5 ------------ Run | Jun Mat Min Mat Mat Fac DSF Fac Low Dat Pro Used RIF Installer . | . . . . . . . . . . . Robots Hacked . | . . . . . . . . . . . Non-combat . | . . . . . . . . . . . Combat . | . . . . . . . . . . . Robot Hacks Applied . | . . . . . . . . . . . Relay Couplers Released . | . . . . . . . . . . . Fabnet Peak Effective % . | . . . . . . . . . . . Robots Rewired . | . . . . . . . . . . . Allies Hacked . | . . . . . . . . . . . Hacks Repelled . | . . . . . . . . . . . Allies | -11 -10 -10 -9 -8 -7 -7 -6 -6 -6 -5 -------- Run | Jun Mat Min Mat Mat Fac DSF Fac Low Dat Pro Total Allies . | . . . . . . . . . . . Largest Group . | . . . . . . . . . . . Highest-Rated Group . | . . . . . . . . . . . Highest-Rated Ally . | . . . . . . . . . . . Total Orders . | . . . . . . . . . . . Ally Attacks . | . . . . . . . . . . . Total Damage . | . . . . . . . . . . . Kills . | . . . . . . . . . . . Allies Corrupted . | . . . . . . . . . . . Allies Melted . | . . . . . . . . . . . Intel | -11 -10 -10 -9 -8 -7 -7 -6 -6 -6 -5 ------- Run | Jun Mat Min Mat Mat Fac DSF Fac Low Dat Pro Robot Analysis Total 131 | . . . . . . . . . 131 . Derelict Logs Recovered 2 | . . 1 . . . . . 1 . . Drone Launches . | . . . . . . . . . . . Drone Recoveries . | . . . . . . . . . . . Exploration | -11 -10 -10 -9 -8 -7 -7 -6 -6 -6 -5 ------------- Run | Jun Mat Min Mat Mat Fac DSF Fac Low Dat Pro Turns Passed 625 | 12 37 13 85 92 39 61 106 92 54 34 Spaces Moved 1229 | 25 56 26 140 184 81 103 278 171 98 67 Core 735 | 25 55 26 140 113 36 19 . 156 98 67 Treads 1 | . 1 . . . . . . . . . Legs . | . . . . . . . . . . . Wheels . | . . . . . . . . . . . Hover . | . . . . . . . . . . . Flight 493 | . . . . 71 45 84 278 15 . . Fastest Speed 32 | 50 50 50 50 37 34 34 32 32 50 50 Average Speed 43 | 50 51 50 50 45 41 37 32 48 50 50 Slowest Speed 160 | 50 160 50 50 50 50 50 32 50 50 50 Overloaded Moves . | . . . . . . . . . . . Propulsion Burnouts . | . . . . . . . . . . . Robots Hopped 2 | . . . . 1 1 . . . . . Cave-ins Triggered . | . . . . . . . . . . . Exploration Rate (%) 29 | 3 20 17 25 21 3 81 11 43 78 20 Regions Visited 10 Branch Regions 4 Pre-discovered Areas 32 | . . . . . . . . . 32 . Known Exits Taken 1 | . . . . . 1 . . . . . Unknown Exits Taken 8 | 1 1 1 1 1 . . 1 1 1 . Scrap Searched 1 | . . . . . . . . 1 . . Spaces Dug 1 | . . . . . . . 1 . . . Terrain Destroyed 19 | . . . . . . . 1 18 . . Melee 1 | . . . . . . . 1 . . . Projectile . | . . . . . . . . . . . AOE 18 | . . . . . . . . 18 . . Terrain Rammed . | . . . . . . . . . . . Walls Destroyed . | . . . . . . . . . . . Machines Disabled . | . . . . . . . . . . . Actions | -11 -10 -10 -9 -8 -7 -7 -6 -6 -6 -5 --------- Run | Jun Mat Min Mat Mat Fac DSF Fac Low Dat Pro Total 1302 | 24 62 25 156 189 84 124 293 177 101 67 Wait . | . . . . . . . . . . . Move 1215 | 24 55 25 139 181 78 102 277 170 97 67 Hop 2 | . . . . 1 1 . . . . . Pick Up 19 | . 5 . 5 1 . 3 3 . 2 . Fast Attach 8 | . 2 . . 3 1 . 2 . . . Attach 14 | . . . 1 2 4 . 4 2 1 . Detach 5 | . . . . 1 . 1 2 1 . . Swap . | . . . . . . . . . . . Drop 6 | . . . 4 . . . 1 1 . . Fire 3 | . . . . . . . . 3 . . Melee 2 | . . . . . . . 1 . 1 . Ram 7 | . . . 7 . . . . . . . Kick . | . . . . . . . . . . . Crush . | . . . . . . . . . . . Escape Stasis 18 | . . . . . . 18 . . . . Rewire 3 | . . . . . . . 3 . . . Trap . | . . . . . . . . . . . Miscellaneous . | . . . . . . . . . . . Route ------- -11/Junkyard -10/Materials -10/Mines -9/Materials -8/Materials -7/Factory -7/DSF -6/Factory -6/Lower Caves -6/Data Miner -5/Proximity Caves History --------- Turn | Location | Event 5 | -11/Junkyard | Discovered new exit (range 15) 13 | -11/Junkyard | Entered Materials 45 | -10/Materials | Discovered new exit (range 10) 50 | -10/Materials | Entered Mines 57 | -10/Mines | Discovered new exit (range 10) 58 | -10/Mines | Learned Materials machine intel 63 | -10/Mines | Entered Materials 63 | -9/Materials | Evolved 2 slots: Propulsion x1, Utility x1 64 | -9/Materials | Loaded intel: 55 machine locations 139 | -9/Materials | Discovered new exit (range 16) 141 | -9/Materials | Core integrity fell below 50% 148 | -9/Materials | Entered another Materials area 148 | -8/Materials | Evolved 2 slots: Propulsion x1, Utility x1 166 | -8/Materials | Lost 3 parts (3n) 236 | -8/Materials | Discovered new exit (range 7) 240 | -8/Materials | Entered Factory 240 | -7/Factory | Evolved 2 slots: Power x1, Propulsion x1 279 | -7/Factory | Identified exit to DSF 279 | -7/Factory | Entered DSF 303 | -7/DSF | Build established: Mutant 309 | -7/DSF | Additional patrols routed to DSF 318 | -7/DSF | Discovered new exit (range 14) 333 | -7/DSF | Core integrity fell below 50% 340 | -7/DSF | Entered Factory 340 | -6/Factory | Evolved 2 slots: Weapon x2 359 | -6/Factory | Lost 3 parts (3n) 442 | -6/Factory | Discovered new exit (range 13) 446 | -6/Factory | Entered Lower Caves 457 | -6/Lower Caves | Attracted the attention of an 0b10 checkpoint 490 | -6/Lower Caves | Lost 4 parts (2n1u1w) 497 | -6/Lower Caves | Attracted the attention of an 0b10 outpost 517 | -6/Lower Caves | Learned 12 Factory zone layouts 533 | -6/Lower Caves | A Derelict revealed a hidden shortcut to meet someone special 538 | -6/Lower Caves | Entered Data Miner 538 | -6/Data Miner | Discovered new exit (range 6) 548 | -6/Data Miner | Met Data Miner 560 | -6/Data Miner | Learned location of Section 7 (-3) 560 | -6/Data Miner | Acquired the access code to Warlord's prototype stash 564 | -6/Data Miner | Received God Mode back door access code from Data Miner 573 | -6/Data Miner | Destroyed Data Miner 575 | -6/Data Miner | Interfaced with the Data Conduit 576 | -6/Data Miner | Found Prototype Hackware 579 | -6/Data Miner | Found Prototype Hackware 587 | -6/Data Miner | Core integrity fell below 50% 592 | -6/Data Miner | Core integrity fell below 20% 592 | -6/Data Miner | Entered Proximity Caves 595 | -5/Proximity Caves | Spotter reported a threat 595 | -5/Proximity Caves | Spotter reported a threat 621 | -5/Proximity Caves | Spotted B-75 Beast 626 | -5/Proximity Caves | Destroyed by B-75 Beast with Heavy Machine Gun Last Messages --------------- 00573_ Data Miner destroyed. 00575_ Acquired 26 matter. 00575_ Interfacing with system... Downloaded 131 analysis records. Downloaded 719 prototype IDs. Downloaded central machine database. Downloaded 31 destinations. Downloaded encryption format records. Connection remotely terminated. 00576_ Acquired Prototype Hackware. LOCATION=UNKNOWN GOAL=ESCAPE 00593_ N-01 Spotter is scanning... 00595_ ALERT: Unidentified potential threat approaching Complex 0b10. 00595_ N-01 Spotter sends a signal. 00595_ ALERT: Unidentified potential threat approaching Complex 0b10. 00604_ C-30 ARC bursts open, deploying its payload. 00604_ H-66 Slayer unfolds itself. 00604_ Penetrated by Slug. 00604_ Chainsword destroyed. Map ----- +----------------------------------------------------+ | ?????????????????????????????????????????????????? | | ?????????????????????????????????????????????????? | | ?????????????????????????????????????????????????? | | ?????????????????????????????????????????????????? | | ?????????????????????????????????????????????????? | | ?????????????????????????????????????????????????? | | ?????????????????????????????????????????????????? | | ?????????????????????????????????????????????????? | | ?????????????????????????????????????????????????? | | ?????????????????????????????????????????????????? | | ?????????????????????????????????????????????????? | | ????????????????????????? ???????????????????? | | ???###??????????????????? ##????????????????? | | ??? ##? #??????????????? ????????????????? | | ??# ## ##?????????????? #????????????????? | | ?? ??????????????? #????????????????? | | ?? ??????????????? ###??????????????? | | ?? #???????????????? #??????????????? | | ??# #???????????????? ####???????????? | | ?## #????????????????? ???????????? | | ## #?????????????????? #??????????? | | # #??????????????????# BB ##?????????? | | #??###????????????## # BB ##????????? | | ###### ##??????????## ;; #????????? | | ###?????#### ## #????????? | | ##???## @ ???????? | | ## ##??# ???????? | | ### #??#### #????????? | | #?## ##?#### #####?????????? | | ## ##??## ### ##????????????? | | ####????## #????????????? | | ?????????# ## % ##### #???????????? | | ?????????# ### ### #?????###???????????? | | ????????# #?# ##?## #???????????????????? | | ???????# #?# #???# #??????????????????? | | ???????#### #?### #??# #??????????????????? | | ??????????####???#### ? #?????????????????? | | ????????????????????### #?????????????????? | | ???????????????????????# ##?????????????????? | | ???????????????????????? #####??????????????????? | | ?????????????????????????##??????????????????????? | | ?????????????????????????????????????????????????? | | ?????????????????????????????????????????????????? | | ?????????????????????????????????????????????????? | | ?????????????????????????????????????????????????? | | ?????????????????????????????????????????????????? | | ?????????????????????????????????????????????????? | | ?????????????????????????????????????????????????? | | ?????????????????????????????????????????????????? | | ?????????????????????????????????????????????????? | +----------------------------------------------------+ Best States ------------- Heat Dissipation 37 Energy Generation 14 Energy Capacity 240 Matter Stores 300 Matter Capacity 300 Sight Range 16 Terrain Scan Density 10 Armor Coverage 150 Evasion (%) 63 Targeting Accuracy 16 Launcher Accuracy 20 Recoil Reduction 1 Offensive Hacking 10 Item Schematics ----------------- Combat Drone Bay | -6/Data Miner | Free Lgt. Regenerative Plating | -6/Data Miner | Free Cld. Nuclear Pulse Thruster | -6/Data Miner | Free Imp. Energy Well | -6/Data Miner | Free Imp. KE Penetrator | -6/Data Miner | Free Imp. Heavy Treads | -6/Data Miner | Free Hardcell Cannon | -6/Data Miner | Free Adv. Target Analyzer | -6/Data Miner | Free Antigrav Array | -6/Data Miner | Free Adv. Cryofiber Web | -6/Data Miner | Free Graphene Brace | -6/Data Miner | Free Robot Schematics ------------------ H-66 Slayer | -6/Data Miner | Free E-15 Imp | -6/Data Miner | Free Y-54 Guardian | -6/Data Miner | Free B-48 Gladiator | -6/Data Miner | Free X-72 Disruptor | -6/Data Miner | Free B-60 Warrior | -6/Data Miner | Free Fabricated ------------ Nothing Alien Tech Used ----------------- None Achievements -------------- None Challenges ------------ None Game ------ Seed HardcellSmartbombScrap Manual? 0 Play Time 00:09:49 Cumulative 240.5 hours Start 2023.05.26 @ 11:16:03 End 2023.05.26 @ 11:26:16 Sessions 1 Manual Loads 0 Difficulty Rogue Special Mode None Game No. 725 Rogue 725 Adventurer 0 Explorer 0 Win Type - Total 11 Types 8/0/1/2/0/0/0/0/0 Lore% 86 Gallery% 82 Achievement% 73 Wizard Run 0 Options --------- ASCII 0 Keyboard 0 Movement Numpad Keybinds 0 Fullscreen 1 Font 16/SmallcapsGlow Map View 75x55 Tactical HUD 1 Map Filters NONE Filters NONE Steam 1 RUN: 8cada9b1-2ab2-402c-9605-34e52906638f